{"text_format":"3","workbook":"xlsx","n_sheets":3,"sheets":["Единый график","Доп. инфомрация","Лист1"],"read":"whole","date_system":"1900"}

{"sheet":"Единый график","index":0,"n_rows":40,"n_cols":49,"rows_kept":40,"merged":[[1,1,1,3],[1,8,1,22],[1,23,1,33],[1,34,3,34],[1,35,1,36],[2,0,2,7],[2,8,4,22],[2,23,4,33],[2,35,2,36],[3,0,3,1],[3,2,3,3],[3,4,3,5],[3,6,3,7],[3,35,3,36],[4,0,4,1],[4,2,4,3],[4,4,4,5],[4,6,4,7],[5,0,5,1],[5,2,5,5],[6,0,7,0],[6,1,7,1],[6,2,7,2],[6,3,6,33],[6,34,6,48],[20,23,22,23],[20,42,22,42]]}
["Единый график проведения оценочных процедур"]
["НП","Алапаевск",null,null,"ОО","3207","МОУО","32","Положения Рекоменадций Рособрнадзора ",{"$nulls":14},"Определение оценочных процедур (ОП)",{"$nulls":10},"Уровни \nОП ","Федеральный"]
["Утверждено",{"$nulls":7},"- проводить оценочные процедуры по каждому учебному предмету в одной параллели классов не чаще 1 раза в 2,5 недели. При этом объем учебного времени, затрачиваемого на проведение оценочных  процедур, не должен превышать 10% от всего объема учебного времени, отводимого на изучение данного учебного предмета в данной параллели в текущем учебном году\n- не проводить для обучающихся одного класса более одной оценочной процедуры в день, не проводить оценочные процедуры на первом и последнем уроках, за исключением учебных\n- предметов, по которым проводится не более 1 урока в неделю, причем этот урок является первым или последним в расписании\n- не проводить оценочные процедуры на первом и последнем уроках, за исключением учебных предметов, по которым проводится не более 1 урока в неделю, причем этот урок является первым или последним в расписании",{"$nulls":14},"- Контрольные, проверочные и диагностические работы, которые выполняются всеми обучающимися в классе одновременно и длительность которых составляет не менее тридцати минут. Все перечисленные виды работ называются оценочными процедурами",{"$nulls":11},"Региональный"]
["Приказ №",{"$nulls":3},"Приказ об изменениях",{"$nulls":30},"ОО"]
["Дата утверждения",null,"2025-08-27",null,"Дата изменений "]
["Период"]
["Класс","Форма освоения","Кол-во ОП в указанном периоде","сентябрь",{"$nulls":30},"октябрь"]
[{"$nulls":3},2,3,4,5,6,8,9,10,11,12,13,15,16,17,18,19,20,22,23,24,25,26,27,29,30,1,2,3,4,6,7,8,9,10,11,13,14,15,16,17,18,20,21,22,23,24]
["2а","база",{"$f":"COUNTA(D9:AW9)","v":1},{"$nulls":37},"ПР англ"]
["2б","база",{"$f":"COUNTA(D10:AW10)","v":1},{"$nulls":38},"ПР англ"]
["2в","база",1,{"$nulls":38},"ПР англ"]
[]
["3а","база",6,{"$nulls":5},"ВКР рус.",null,null,"ВКР мат.",null,null,"ВКР лит.чт.",{"$nulls":23},"КР рус",null,"ПР англ",{"$nulls":3},"КР мат"]
["3б","база",5,{"$nulls":5},"ВКР рус.",null,null,"ВКР мат.",null,null,"ВКР лит.чт.",{"$nulls":23},"КР рус",{"$nulls":5},"КР мат"]
["3в","база",6,{"$nulls":5},"ВКР рус.",null,null,"ВКР мат.",null,null,"ВКР лит.чт.",{"$nulls":23},"КР рус",null,"КР англ",{"$nulls":3},"КР мат"]
[]
["4а","база",1,{"$nulls":38},"ПР англ"]
["4б","база",1,{"$nulls":37},"ПР англ"]
["4в","база",6,{"$nulls":37},"ПР англ"]
[]
["5а","база",4,{"$nulls":18},"ПР лит",{"$nulls":11},"КР мат",{"$nulls":6},"ПР англ",{"$nulls":5},"ПР лит"]
["5б","база",1,{"$nulls":37},"ПР англ"]
["5в","база",3,{"$nulls":24},"Т лит",{"$nulls":8},"ПР лит",{"$nulls":3},"ПР англ"]
[]
["6а","база",2,{"$nulls":36},"КР мат",null,"ПР англ"]
["6б","база",5,{"$nulls":36},"КР мат",null,"ПР англ"]
["6в","база",2,{"$nulls":36},"КР мат",null,"ПР англ"]
[]
["7а","база",3,{"$nulls":21},"КР физ",{"$nulls":15},"ПР англ",null,"КР физ"]
["7б","база",3,{"$nulls":21},"КР физ",{"$nulls":15},"ПР ангш",null,"КР физ"]
[]
["8а","база",10,{"$nulls":9},"КР рус",{"$nulls":13},"КР хим","КР физ","СОЧ рус",{"$nulls":10},"ИЗЛ рус",null,"ПР англ",null,"КР ОБЗР","КР хим","КР физ","КР био"]
["8б","база",10,{"$nulls":9},"КР рус",{"$nulls":13},"КР хим","КР физ","СОЧ рус",{"$nulls":10},"ИЗЛ рус",null,"ПР англ",null,"КР ОБЗР","КР хим","КР физ","КР био"]
[]
["9а","база",6,{"$nulls":15},"зачет Био",{"$nulls":7},"КР хим",{"$nulls":12},"КР ОБЗР",null,"ПР англ","зачет Био",null,"КР хим"]
["9б","база",6,{"$nulls":15},"зачет Био",{"$nulls":7},"КР хим",{"$nulls":12},"КР ОБЗР",null,"ПР англ","зачет Био",null,"КР хим"]
["9в","база",6,{"$nulls":15},"зачет Био",{"$nulls":7},"КР хим",{"$nulls":12},"КР ОБЗР",null,"ПР англ","зачет Био",null,"КР хим"]
[]
[10,"база",2,{"$nulls":31},"КР хим",{"$nulls":5},"КР ОБЗР"]
[11,"база",2,{"$nulls":31},"КР хим",{"$nulls":8},"КР ОБЗР"]

{"sheet":"Доп. инфомрация","index":1,"n_rows":27,"n_cols":1,"rows_kept":27}
["Сопроводительное письмо к примерному единому графику оценочных процедур"]
[]
["1. В целях оптимизации количества контрольных, проверочных и иных диагностических работ (далее – оценочные процедуры или ОП) и формирования общих подходов к определению временных объемов, количества и графика проведения оценочных процедур, а также в целях обеспечения открытости и доступности информации о системе образования разработан примерный единый график оценочных процедур (далее – примерный график). Примерный график предоставляется в формате электронной таблицы Excel."]
["2. Содержание примерного графика основывается на Письме Министерства просвещения Российской Федерации № СК 228/03 и Федеральной службы по надзору в сфере образования и науки № 01-169/08-01 от 6 августа 2021 года (далее – Рекомендации), которое определяет рекомендации для использования в работе с муниципальными органами управления образования и общеобразовательными организациями, а также на результатах  регионального мониторинга количества контрольных работ в Свердловской области в рамках Государственного задания ГАОУ ДПО СО «Институт развития образования» на 2022 год, утвержденного 24.12.2021 года по «Сопровождению региональной системы оценки качества образования»."]
["3. Примерный график содержит следующие заполняемые поля в верхней части (шапке) таблицы:"]
["·        Населенный пункт (НП);"]
["·        Номер ОО;"]
["·        Код МОУО;"]
["·        Номер приказа ОО об утверждении единого графика ОП;"]
["·        Дата утверждения приказа ОО об утверждении единого графика;"]
["·        Номер приказа ОО об внесении изменений в уже опубликованный единый график ОП;"]
["·        Дата утверждения приказа ОО об внесении изменений в уже опубликованный единый график ОП;"]
["·        Период (например, четверть, триместр, полугодие и т.п.)."]
["4. Примерный график содержит следующие заполняемые поля в левой и центральной частях таблицы:"]
["·        Класс (с указанием буквы);"]
["·        Форма освоения учебной программы (базовая подготовка или профильная и т.п.)"]
["·        Количество ОП за заполняемый период;"]
["·        Ячейки с указанием календарных месяца и дней."]
["5. Кроме этого примерный график содержит следующие поля со справочной информацией:"]
["·        Список некоторых пунктов рекомендаций Федеральной службы по надзору в сфере образования и науки;"]
["·        Определение ОП согласно рекомендациям Федеральной службы по надзору в сфере образования и науки;"]
["·        Список ОП согласно рекомендациям Федеральной службы по надзору в сфере образования и науки."]
["6. Рекомендуется заполнять график с указанием наименования ОП и предмета оценочной процедуры (при наличии таковой возможности), например, «КР, рус.» или «ВПР».  Для удобства работы с примерным графиком ОП рекомендуется утвердить список сокращений, используемых при работе с графиком, отобразив его в верхней части графика (справа от списка уровней ОП) и/или в приказе об утверждении единого графика оценочных процедур ОО. Каждая из ОП внесенных в график оценочных процедур должна иметь цветовое обозначение, а именно: цвет «зеленый» – для ОП федерального уровня, цвет «желтый» – для ОП регионального уровня, цвет «оранжевый» – для ОП школьного уровня. Для применения цветового обозначения рекомендуется использовать базовый инструмент «Цвет заливки» или «Заливка» используемого редактора таблиц."]
["7. Минимальной временной единицей заполнения является 1 календарный день (в соответствии с часть «в» пункта 2.1 рекомендаций Федеральной службы по надзору в сфере образования и науки)."]
["8. Разделение графика на четверти, триместры или полугодия является рекомендуемым для удобства навигации, чтения и заполнения графика, который составляется ОО индивидуально с учетом оснащенности и контекста ОО. При необходимости удаляются лишние строки и колонки, а также добавляются новые путем базового редактирования таблицы."]
["9. Для подсчета количества ОП за тот или иной период рекомендуется использовать формулу «СЧЁТЗ», которая подсчитывает ячейки, содержащие данные любого типа и исключает из подсчета пустые (незаполненные ячейки). Формула «СЧЁТЗ» требует указания диапазона счета, например, =СЧЁТЗ(D9:BM9). Данный пример взят из образца примерного единого графика ОП из колонки «Количество ОП в указанном периоде»."]
["10. Рекомендуется размещать сформированный график не позднее чем через 2 недели после начала учебного года либо после начала полугодия, на которое формируется график, на сайте ОО на главной странице подраздела «Документы» раздела «Сведения об образовательной организации» в виде электронного документа."]

{"sheet":"Лист1","index":2,"n_rows":0,"n_cols":0,"rows_kept":0}